[Event "69th RUS-ch Women Superfinal 2019"]
[Site "Izhevsk"]
[Date "2019.08.17"]
[Round "7.5"]
[White "Tomilova, Elena"]
[Black "Potapova, Margarita"]
[Result "1/2-1/2"]
[ECO "A05"]
[WhiteElo "2281"]
[BlackElo "2292"]
[Annotator "NA"]
[PlyCount "104"]
[EventDate "2019.08.10"]
[EventType "tourn"]
[EventCountry "RUS"]
[SourceTitle "playchess.com"]
[Source "ChessBase"]
[SourceQuality "1"]
[TimeControl "40/5400+30:1800+30"]

1. Nf3 {[%emt 0:00:00]} Nf6 {[%emt 0:00:00]} 2. c4 {[%emt 0:00:00]} e6 {[%emt 0:00:00]} 3. e3 {[%emt 0:00:00]} d5 {[%emt 0:01:25]} 4. b3 {[%emt 0:00:13]} Be7 {[%emt 0:01:10]} 5. Bb2 {[%emt 0:00:55]} O-O {[%emt 0:00:20]} 6. Nc3 {[%emt 0:01:33]} b6 {[%emt 0:01:58]} 7. Be2 {[%emt 0:04:01]} Bb7 {[%emt 0:00:28]} 8. O-O {[%emt 0:00:21]} c5 {[%emt 0:02:06]} 9. cxd5 {[%emt 0:00:56]} Nxd5 {[%emt 0:02:35]} 10. d4 {[%emt 0:03:36]} Nxc3 {[%emt 0:04:30]} 11. Bxc3 {[%emt 0:00:07]} Nd7 {[%emt 0:03:02]} 12. Qc2 {[%emt 0:05:16]} Rc8 {[%emt 0:10:45]} 13. Qb2 {[%emt 0:02:11]} Bf6 {[%emt 0:01:30]} 14. Rfd1 {[%emt 0:01:39]} Qe7 {[%emt 0:02:46]} 15. b4 {[%emt 0:19:59]} cxd4 {[%emt 0:10:51]} 16. Nxd4 {[%emt 0:03:09]} Rfd8 {[%emt 0:03:50]} 17. Rac1 {[%emt 0:01:15]} a6 {[%emt 0:04:17]} 18. b5 {[%emt 0:10:20]} axb5 $11 {[%emt 0:01:17]} 19. Bxb5 {[%emt 0:02:26]} Nc5 {[%emt 0:02:03]} 20. f3 {[%emt 0:03:12]} Bg5 {[%emt 0:02:50]} 21. Qe2 {[%emt 0:02:38]} e5 {[%emt 0:02:39]} 22. Nf5 {[%emt 0:03:04]} Qe6 {[%emt 0:01:58]} 23. Ng3 {[%emt 0:01:03]} Qh6 {[%emt 0:06:18]} 24. Nf1 {[%emt 0:01:33]} Qe6 {[%emt 0:06:14]} 25. Bb4 {[%emt 0:06:31]} Rxd1 {[%emt 0:16:39]} 26. Rxd1 {[%emt 0:00:42]} Bd5 {[%emt 0:01:56]} 27. a3 {[%emt 0:00:58]} Bc6 {[%emt 0:03:52]} 28. Bc4 {[%emt 0:01:49]} Qe8 {[%emt 0:00:18]} 29. Ng3 {[%emt 0:05:32]} g6 {[%emt 0:01:14]} 30. Bxc5 {[%emt 0:03:17]} bxc5 {[%emt 0:00:06]} 31. Ne4 {[%emt 0:00:18]} Bxe4 {[%emt 0:02:22]} 32. fxe4 {[%emt 0:00:05]} Kg7 {[%emt 0:00:27]} 33. Bb5 {[%emt 0:08:18]} Qf8 {[%emt 0:00:38]} 34. Rf1 {[%emt 0:03:02]} Rc7 {[%emt 0:01:18]} 35. a4 {[%emt 0:00:33]} c4 {[%emt 0:00:32]} 36. Bxc4 {[%emt 0:00:15]} Qc5 {[%emt 0:00:18]} 37. Bd5 {[%emt 0:01:24]} Qxe3+ {[%emt 0:01:25]} 38. Qxe3 {[%emt 0:00:05]} Bxe3+ {[%emt 0:00:05]} 39. Kh1 {[%emt 0:00:02]} Ra7 {[%emt 0:01:38]} 40. Bc6 {[%emt 0:00:00]} Rc7 {[%emt 0:00:00]} 41. Bb5 {[%emt 0:03:18]} Bd2 {[%emt 0:01:26]} 42. g3 {[%emt 0:03:07]} Ba5 {[%emt 0:09:28]} 43. Kg2 {[%emt 0:03:27]} Rc2+ {[%emt 0:00:41]} 44. Rf2 {[%emt 0:00:16]} Rc1 {[%emt 0:02:11]} 45. g4 {[%emt 0:02:09]} f6 {[%emt 0:01:47]} 46. h4 {[%emt 0:00:30]} Bb6 {[%emt 0:00:42]} 47. Ra2 {[%emt 0:00:50]} Rg1+ {[%emt 0:00:26]} 48. Kf3 {[%emt 0:00:34]} Ba5 {[%emt 0:00:57]} 49. Be2 {[%emt 0:08:05]} Rh1 {[%emt 0:00:59]} 50. Kg3 {[%emt 0:03:45]} Rg1+ {[%emt 0:00:38]} 51. Kf3 {[%emt 0:00:18]} Rh1 {[%emt 0:00:06]} 52. Kg3 {[%emt 0:00:42]} Rg1+ {[%emt 0:00:29]} 1/2-1/2

[Event "69th RUS-ch Women Superfinal 2019"]
[Site "Izhevsk"]
[Date "2019.08.17"]
[Round "7.6"]
[White "Goryachkina, Aleksandra"]
[Black "Bodnaruk, Anastasia"]
[Result "1/2-1/2"]
[ECO "E81"]
[WhiteElo "2564"]
[BlackElo "2440"]
[Annotator "ChessBase"]
[PlyCount "129"]
[EventDate "2019.08.10"]
[EventType "tourn"]
[EventCountry "RUS"]
[SourceTitle "playchess.com"]
[Source "ChessBase"]
[SourceQuality "1"]
[TimeControl "40/5400+30:1800+30"]

1. d4 {[%emt 0:00:00]} Nf6 {[%emt 0:00:00]} 2. c4 {[%emt 0:00:00]} g6 {[%emt 0:00:00]} 3. Nc3 {[%emt 0:00:00]} Bg7 {[%emt 0:00:00]} 4. e4 {[%emt 0:00:07]} d6 {[%emt 0:00:00]} 5. f3 {[%emt 0:00:12]} O-O {[%emt 0:00:07]} 6. Be3 {[%emt 0:00:16]} c5 {[%emt 0:00:18]} 7. Nge2 {[%emt 0:00:21]} Nc6 {[%emt 0:00:15]} 8. d5 {[%emt 0:00:48]} Ne5 {[%emt 0:00:54]} 9. Ng3 {[%emt 0:00:54]} e6 {[%emt 0:00:47]} 10. Be2 {[%emt 0:01:49]} exd5 {[%emt 0:00:11]} 11. cxd5 {[%emt 0:00:20]} a6 {[%emt 0:01:13]} 12. a4 {[%emt 0:01:28]} Bd7 {[%emt 0:01:03]} 13. O-O {[%emt 0:00:21]} b5 {[%emt 0:05:44]} 14. h3 {[%emt 0:00:40]} Rb8 {[%emt 0:05:13]} 15. axb5 {[%emt 0:04:00]} axb5 {[%emt 0:00:40]} 16. f4 {[%emt 0:04:05]} Nc4 {[%emt 0:00:08]} 17. Bxc4 {[%emt 0:00:23]} bxc4 {[%emt 0:00:03]} 18. e5 {[%emt 0:00:51]} Ne8 {[%emt 0:31:00]} 19. Qe2 {[%emt 0:11:47]} dxe5 {[%emt 0:04:50]} 20. Bxc5 {[%emt 0:02:48]} exf4 {[%emt 0:00:32]} 21. Bxf8 {[%emt 0:01:32]} Bxf8 {[%emt 0:01:30]} 22. Rxf4 {[%emt 0:03:11]} Bc5+ {[%emt 0:07:24]} 23. Kf1 {[%emt 0:17:30]} f5 {[%emt 0:10:56]} 24. Rxc4 {[%emt 0:05:00]} Bd6 {[%emt 0:08:53]} 25. Nh1 {[%emt 0:03:38]} Nf6 {[%emt 0:01:32]} 26. Nf2 {[%emt 0:12:23]} Nh5 {[%emt 0:01:22]} 27. Kg1 {[%emt 0:00:52]} Qg5 {[%emt 0:01:39]} 28. Qf3 {[%emt 0:03:32]} Re8 {[%emt 0:01:21]} 29. Rc6 {[%emt 0:10:27]} Bxc6 {[%emt 0:07:34]} 30. dxc6 {[%emt 0:00:01]} Nf4 {[%emt 0:02:59]} 31. Nd3 {[%emt 0:07:13]} Re3 {[%emt 0:06:02]} 32. Ra8+ {[%emt 0:02:03]} Kg7 {[%emt 0:00:49]} 33. Ra7+ {[%emt 0:01:33]} Kh6 {[%emt 0:00:12]} 34. h4 {[%emt 0:01:37]} Qg4 {[%emt 0:01:07]} 35. Qxg4 {[%emt 0:01:29]} fxg4 {[%emt 0:00:02]} 36. Nxf4 {[%emt 0:01:04]} Bc5 {[%emt 0:00:49]} 37. Ra5 {[%emt 0:01:32]} Rxc3+ {[%emt 0:00:32]} 38. Kh2 {[%emt 0:01:38]} Rc1 {[%emt 0:00:46]} 39. Kg3 {[%emt 0:01:05]} Bd6 {[%emt 0:00:17]} 40. Kxg4 {[%emt 0:00:00]} Rxc6 {[%emt 0:00:00]} 41. Rb5 {[%emt 0:05:23]} Bxf4 {[%emt 0:16:53]} 42. Kxf4 {[%emt 0:00:02]} Rc4+ {[%emt 0:00:04]} 43. Kg3 {[%emt 0:00:13]} Kg7 {[%emt 0:00:17]} 44. Rb3 {[%emt 0:03:32]} h5 {[%emt 0:01:32]} 45. Rc3 {[%emt 0:02:04]} Rb4 {[%emt 0:03:27]} 46. b3 {[%emt 0:00:07]} Kh6 {[%emt 0:02:10]} 47. Kh3 {[%emt 0:01:12]} Rd4 {[%emt 0:06:43]} 48. Rf3 {[%emt 0:01:42]} Re4 {[%emt 0:01:31]} 49. Rd3 {[%emt 0:00:46]} Rf4 {[%emt 0:00:44]} 50. g3 {[%emt 0:05:47]} Rf2 {[%emt 0:00:01]} 51. Rd7 {[%emt 0:00:10]} Rb2 {[%emt 0:01:28]} 52. Rb7 {[%emt 0:00:01]} Rc2 {[%emt 0:00:17]} 53. b4 {[%emt 0:00:22]} Rb2 {[%emt 0:00:35]} 54. b5 {[%emt 0:00:06]} Rc2 {[%emt 0:00:13]} 55. Rb6 {[%emt 0:06:57]} Rb2 {[%emt 0:00:34]} 56. Rb8 {[%emt 0:00:12]} Rc2 {[%emt 0:02:13]} 57. b6 {[%emt 0:02:43]} Rb2 {[%emt 0:00:05]} 58. Rb7 {[%emt 0:00:04]} g5 {[%emt 0:00:26]} 59. hxg5+ {[%emt 0:00:07]} Kxg5 {[%emt 0:00:05]} 60. Rb8 {[%emt 0:02:26]} Kg6 {[%emt 0:00:05]} 61. b7 {[%emt 0:01:00]} Kg7 {[%emt 0:00:16]} 62. Kh4 {[%emt 0:00:10]} Rb5 {[%emt 0:00:18]} 63. g4 {[%emt 0:00:10]} hxg4 {[%emt 0:00:11]} 64. Kxg4 {[%emt 0:00:04]} Rb1 {[%emt 0:00:22]} 65. Kf4 {[%emt 0:00:06]} 1/2-1/2

[Event "69th RUS-ch Women Superfinal 2019"]
[Site "Izhevsk"]
[Date "2019.08.19"]
[Round "8.1"]
[White "Kashlinskaya, Alina"]
[Black "Bodnaruk, Anastasia"]
[Result "1-0"]
[ECO "E97"]
[WhiteElo "2492"]
[BlackElo "2440"]
[Annotator "ChessBase"]
[PlyCount "165"]
[EventDate "2019.08.10"]
[EventType "tourn"]
[EventCountry "RUS"]
[SourceTitle "playchess.com"]
[Source "ChessBase"]
[SourceQuality "1"]
[TimeControl "40/5400+30:1800+30"]

1. d4 {[%emt 0:00:00]} Nf6 {[%emt 0:00:00]} 2. c4 {[%emt 0:00:00]} g6 {[%emt 0:00:00]} 3. Nc3 {[%emt 0:00:00]} Bg7 {[%emt 0:00:00]} 4. e4 {[%emt 0:00:00]} d6 {[%emt 0:00:00]} 5. Nf3 {[%emt 0:00:03]} O-O {[%emt 0:00:00]} 6. Be2 {[%emt 0:00:04]} e5 {[%emt 0:00:11]} 7. O-O {[%emt 0:00:08]} Nc6 {[%emt 0:00:04]} 8. dxe5 {[%emt 0:00:13]} Nxe5 {[%emt 0:12:23]} 9. Bf4 {[%emt 0:00:41]} Nxf3+ {[%emt 0:05:41]} 10. Bxf3 {[%emt 0:02:41]} Nd7 {[%emt 0:00:11]} 11. Qd2 {[%emt 0:01:30]} Ne5 {[%emt 0:08:01]} 12. Be2 {[%emt 0:00:36]} Be6 {[%emt 0:00:07]} 13. b3 {[%emt 0:01:02]} Qe7 {[%emt 0:22:17]} 14. Rad1 {[%emt 0:05:38]} Rad8 {[%emt 0:02:28]} 15. h3 {[%emt 0:17:49]} c5 {[%emt 0:09:02]} 16. Nd5 {[%emt 0:10:37]} Bxd5 {[%emt 0:02:21]} 17. Qxd5 {[%emt 0:01:00]} Kh8 {[%emt 0:06:50]} 18. Bg3 {[%emt 0:02:42]} f5 {[%emt 0:03:48]} 19. exf5 {[%emt 0:06:52]} gxf5 {[%emt 0:00:13]} 20. f4 {[%emt 0:01:20]} Nc6 {[%emt 0:04:06]} 21. Bf3 {[%emt 0:02:01]} Bd4+ {[%emt 0:03:35]} 22. Kh2 {[%emt 0:03:18]} Nb4 {[%emt 0:07:23]} 23. Qxb7 {[%emt 0:00:35]} Rd7 {[%emt 0:00:03]} 24. Qb5 {[%emt 0:00:14]} Nc2 {[%emt 0:01:39]} 25. Rd2 {[%emt 0:06:09]} Ne3 {[%emt 0:00:45]} 26. Re1 {[%emt 0:00:17]} Qg7 {[%emt 0:02:54]} 27. Bf2 {[%emt 0:02:00]} Ng4+ {[%emt 0:08:46]} 28. hxg4 {[%emt 0:04:06]} Bxf2 {[%emt 0:00:01]} 29. Rxf2 {[%emt 0:00:09]} fxg4 {[%emt 0:00:01]} 30. Bxg4 {[%emt 0:02:39]} Qxg4 {[%emt 0:00:04]} 31. Qc6 {[%emt 0:00:39]} Qh4+ {[%emt 0:02:04]} 32. Kg1 {[%emt 0:00:02]} Re7 {[%emt 0:00:29]} 33. Re4 {[%emt 0:03:27]} Rg8 {[%emt 0:00:30]} 34. Rfe2 {[%emt 0:00:27]} Rxe4 {[%emt 0:00:31]} 35. Qxe4 {[%emt 0:00:54]} Rf8 {[%emt 0:00:29]} 36. f5 {[%emt 0:08:33]} Qf6 {[%emt 0:00:28]} 37. Qd5 {[%emt 0:01:00]} Qa1+ {[%emt 0:00:31]} 38. Kh2 {[%emt 0:00:14]} Qf6 {[%emt 0:00:31]} 39. Re6 {[%emt 0:00:44]} Qh4+ {[%emt 0:00:30]} 40. Kg1 {[%emt 0:00:00]} a5 {[%emt 0:00:00]} 41. Qxd6 {[%emt 0:04:22]} Rd8 {[%emt 0:09:40]} 42. Qe5+ {[%emt 0:00:51]} Kg8 {[%emt 0:00:04]} 43. Re8+ {[%emt 0:04:44]} Rxe8 {[%emt 0:00:05]} 44. Qxe8+ {[%emt 0:00:04]} Kg7 {[%emt 0:00:02]} 45. Qe5+ {[%emt 0:00:29]} Kf7 {[%emt 0:02:30]} 46. a3 {[%emt 0:12:30]} Qg4 {[%emt 0:05:07]} 47. Qd5+ {[%emt 0:06:09]} Kf6 {[%emt 0:02:11]} 48. Qxc5 {[%emt 0:00:44]} Qd1+ {[%emt 0:01:07]} 49. Kh2 {[%emt 0:00:09]} Qh5+ {[%emt 0:03:48]} 50. Kg3 {[%emt 0:00:13]} Qg5+ {[%emt 0:00:08]} 51. Kf3 {[%emt 0:00:09]} Qh5+ {[%emt 0:00:20]} 52. Ke3 {[%emt 0:00:35]} Qh1 {[%emt 0:05:13]} 53. Kf2 {[%emt 0:03:07]} Qh4+ {[%emt 0:00:41]} 54. Kf3 {[%emt 0:00:15]} Qh5+ {[%emt 0:00:26]} 55. g4 {[%emt 0:01:21]} Qh3+ {[%emt 0:02:09]} 56. Kf4 {[%emt 0:01:18]} Qh2+ {[%emt 0:00:33]} 57. Ke4 {[%emt 0:00:06]} Qh1+ {[%emt 0:01:52]} 58. Kf4 {[%emt 0:00:06]} Qh2+ {[%emt 0:00:12]} 59. Kf3 {[%emt 0:00:01]} Qh3+ {[%emt 0:00:33]} 60. Kf2 {[%emt 0:00:04]} Qh4+ {[%emt 0:01:49]} 61. Kf1 {[%emt 0:00:31]} Qh3+ {[%emt 0:00:44]} 62. Ke1 {[%emt 0:00:40]} Qh1+ {[%emt 0:02:13]} 63. Ke2 {[%emt 0:00:11]} Qg2+ {[%emt 0:00:31]} 64. Qf2 {[%emt 0:00:12]} Qxg4+ {[%emt 0:00:27]} 65. Qf3 {[%emt 0:00:02]} Qd4 {[%emt 0:00:35]} 66. Qd3 {[%emt 0:05:44]} Qb2+ {[%emt 0:00:31]} 67. Kf3 {[%emt 0:00:01]} Qxa3 {[%emt 0:00:26]} 68. Kg4 {[%emt 0:00:58]} Qa1 {[%emt 0:00:26]} 69. Qd6+ {[%emt 0:00:55]} Kf7 {[%emt 0:00:24]} 70. Qd7+ {[%emt 0:00:15]} Kg8 {[%emt 0:00:35]} 71. Qe8+ {[%emt 0:00:59]} Kg7 {[%emt 0:00:01]} 72. Qe7+ {[%emt 0:00:06]} Kg8 {[%emt 0:00:02]} 73. c5 {[%emt 0:00:21]} Qd4+ {[%emt 0:01:28]} 74. Kg5 {[%emt 0:00:29]} Qd2+ {[%emt 0:00:36]} 75. Kf6 {[%emt 0:00:06]} Qh6+ {[%emt 0:00:29]} 76. Ke5 {[%emt 0:00:02]} Qe3+ {[%emt 0:00:26]} 77. Kd6 {[%emt 0:00:01]} Qd2+ {[%emt 0:00:32]} 78. Kc6 {[%emt 0:00:56]} Qg2+ {[%emt 0:00:27]} 79. Kb6 {[%emt 0:01:07]} Qf3 {[%emt 0:00:32]} 80. f6 {[%emt 0:00:49]} Qxb3+ {[%emt 0:00:08]} 81. Ka7 {[%emt 0:00:04]} Qf7 {[%emt 0:00:57]} 82. Qxf7+ {[%emt 0:00:30]} Kxf7 {[%emt 0:00:01]} 83. c6 {[%emt 0:00:06]} 1-0

[Event "69th RUS-ch Women Superfinal 2019"]
[Site "Izhevsk"]
[Date "2019.08.19"]
[Round "8.2"]
[White "Potapova, Margarita"]
[Black "Goryachkina, Aleksandra"]
[Result "1/2-1/2"]
[ECO "D52"]
[WhiteElo "2292"]
[BlackElo "2564"]
[Annotator "ChessBase"]
[PlyCount "176"]
[EventDate "2019.08.10"]
[EventType "tourn"]
[EventCountry "RUS"]
[SourceTitle "playchess.com"]
[Source "ChessBase"]
[SourceQuality "1"]
[TimeControl "40/5400+30:1800+30"]

1. d4 {[%emt 0:00:00]} Nf6 {[%emt 0:00:00]} 2. c4 {[%emt 0:00:00]} e6 {[%emt 0:00:00]} 3. Nf3 {[%emt 0:00:00]} d5 {[%emt 0:00:02]} 4. Nc3 {[%emt 0:00:00]} c6 {[%emt 0:00:09]} 5. Bg5 {[%emt 0:00:50]} Nbd7 {[%emt 0:00:55]} 6. e3 {[%emt 0:00:21]} Qa5 {[%emt 0:01:09]} 7. Nd2 {[%emt 0:01:49]} Bb4 {[%emt 0:00:23]} 8. Qc2 {[%emt 0:00:32]} O-O {[%emt 0:00:38]} 9. Be2 {[%emt 0:00:06]} e5 {[%emt 0:01:09]} 10. Nb3 {[%emt 0:02:51]} Qc7 {[%emt 0:02:30]} 11. O-O {[%emt 0:01:35]} dxc4 {[%emt 0:03:20]} 12. Bxc4 {[%emt 0:00:18]} Bd6 {[%emt 0:00:13]} 13. h3 {[%emt 0:08:47]} h6 {[%emt 0:04:47]} 14. Bh4 {[%emt 0:04:39]} Nb6 {[%emt 0:02:53]} 15. Be2 {[%emt 0:06:51]} exd4 {[%emt 0:12:31]} 16. Bxf6 {[%emt 0:08:36]} dxc3 {[%emt 0:01:03]} 17. Bxc3 {[%emt 0:00:11]} Bd7 {[%emt 0:13:03]} 18. Rfd1 {[%emt 0:03:37]} Rad8 {[%emt 0:03:15]} 19. Ba5 {[%emt 0:11:21]} Rfe8 {[%emt 0:02:12]} 20. Rac1 {[%emt 0:02:10]} Bc8 {[%emt 0:08:59]} 21. Nd4 {[%emt 0:06:03]} Bf8 {[%emt 0:05:52]} 22. Bf1 {[%emt 0:04:14]} Qe5 {[%emt 0:02:24]} 23. Bc3 {[%emt 0:01:51]} Bd6 {[%emt 0:01:26]} 24. Nf3 {[%emt 0:05:25]} Qe7 {[%emt 0:00:28]} 25. b3 {[%emt 0:06:41]} Nd5 {[%emt 0:04:06]} 26. Ba1 {[%emt 0:04:46]} Ba3 {[%emt 0:05:48]} 27. Rb1 {[%emt 0:00:49]} Qc5 {[%emt 0:03:12]} 28. Qxc5 {[%emt 0:01:22]} Bxc5 {[%emt 0:00:01]} 29. Bb2 {[%emt 0:01:27]} Bf5 {[%emt 0:01:13]} 30. Rbc1 {[%emt 0:01:04]} Bb6 {[%emt 0:00:35]} 31. Nd4 {[%emt 0:01:09]} Be4 {[%emt 0:02:41]} 32. a3 {[%emt 0:01:36]} a5 {[%emt 0:02:14]} 33. Bc4 {[%emt 0:01:21]} Re7 {[%emt 0:02:45]} 34. Rd2 {[%emt 0:04:49]} Red7 {[%emt 0:02:37]} 35. Rcd1 {[%emt 0:00:58]} Nf6 {[%emt 0:00:17]} 36. b4 {[%emt 0:02:51]} a4 {[%emt 0:01:19]} 37. Kf1 {[%emt 0:01:40]} h5 {[%emt 0:03:49]} 38. h4 {[%emt 0:02:36]} Ng4 {[%emt 0:03:32]} 39. Bc3 {[%emt 0:02:42]} Bd5 {[%emt 0:04:00]} 40. Be2 {[%emt 0:00:00]} g6 {[%emt 0:00:00]} 41. Nf3 {[%emt 0:13:18]} f6 {[%emt 0:06:49]} 42. Ke1 {[%emt 0:01:31]} Kf8 {[%emt 0:01:13]} 43. Bc4 {[%emt 0:04:04]} Ke7 {[%emt 0:04:16]} 44. Bxd5 {[%emt 0:00:57]} Rxd5 {[%emt 0:00:07]} 45. Rxd5 {[%emt 0:00:18]} Rxd5 {[%emt 0:00:26]} 46. Rxd5 {[%emt 0:00:09]} cxd5 {[%emt 0:00:04]} 47. Ke2 {[%emt 0:03:44]} Kd6 {[%emt 0:00:48]} 48. g3 {[%emt 0:03:09]} Kc6 {[%emt 0:01:22]} 49. Nd4+ {[%emt 0:03:10]} Bxd4 {[%emt 0:06:25]} 50. Bxd4 {[%emt 0:00:07]} Kb5 {[%emt 0:07:04]} 51. f3 {[%emt 0:00:08]} Nh6 {[%emt 0:04:17]} 52. Bxf6 {[%emt 0:00:28]} Kc4 {[%emt 0:00:21]} 53. e4 {[%emt 0:05:15]} dxe4 {[%emt 0:01:47]} 54. fxe4 {[%emt 0:00:05]} b5 {[%emt 0:00:37]} 55. Kf3 {[%emt 0:01:34]} Kb3 {[%emt 0:02:28]} 56. e5 {[%emt 0:00:41]} Kxa3 {[%emt 0:00:42]} 57. Kf4 {[%emt 0:01:12]} Kxb4 {[%emt 0:00:40]} 58. Kg5 {[%emt 0:00:30]} Ng8 {[%emt 0:00:34]} 59. e6 {[%emt 0:00:28]} a3 {[%emt 0:00:44]} 60. Ba1 {[%emt 0:00:41]} Kc4 {[%emt 0:00:28]} 61. Kxg6 {[%emt 0:00:19]} Ne7+ {[%emt 0:00:15]} 62. Kf7 {[%emt 0:00:18]} Nd5 {[%emt 0:00:17]} 63. g4 {[%emt 0:00:37]} b4 {[%emt 0:01:27]} 64. gxh5 {[%emt 0:00:11]} b3 {[%emt 0:00:05]} 65. h6 {[%emt 0:00:05]} b2 {[%emt 0:00:05]} 66. Bxb2 {[%emt 0:00:03]} axb2 {[%emt 0:00:03]} 67. h7 {[%emt 0:00:04]} b1=Q {[%emt 0:00:11]} 68. h8=Q {[%emt 0:00:08]} Qf5+ {[%emt 0:00:42]} 69. Kg7 {[%emt 0:00:47]} Qf6+ {[%emt 0:01:01]} 70. Kh7 {[%emt 0:00:09]} Qxh4+ {[%emt 0:00:18]} 71. Kg8 {[%emt 0:02:36]} Ne7+ {[%emt 0:00:37]} 72. Kg7 {[%emt 0:00:05]} Nf5+ {[%emt 0:00:11]} 73. Kg8 {[%emt 0:00:05]} Qe7 {[%emt 0:02:00]} 74. Qa1 {[%emt 0:01:20]} Qxe6+ {[%emt 0:00:16]} 75. Kf8 {[%emt 0:00:37]} Qe7+ {[%emt 0:00:23]} 76. Kg8 {[%emt 0:00:05]} Nh6+ {[%emt 0:00:36]} 77. Kh8 {[%emt 0:00:05]} Nf7+ {[%emt 0:00:13]} 78. Kg8 {[%emt 0:00:20]} Ne5 {[%emt 0:00:29]} 79. Qa2+ {[%emt 0:00:22]} Kd4 {[%emt 0:00:15]} 80. Qb2+ {[%emt 0:00:19]} Ke4 {[%emt 0:00:17]} 81. Qc2+ {[%emt 0:00:15]} Kf4 {[%emt 0:00:36]} 82. Qd2+ {[%emt 0:00:18]} Kf5 {[%emt 0:00:05]} 83. Qc2+ {[%emt 0:00:36]} Kf6 {[%emt 0:00:57]} 84. Qf2+ {[%emt 0:00:15]} Ke6 {[%emt 0:00:36]} 85. Qa2+ {[%emt 0:00:07]} Kf6 {[%emt 0:00:27]} 86. Qf2+ {[%emt 0:00:07]} Kg6 {[%emt 0:00:04]} 87. Qg2+ {[%emt 0:00:33]} Qg5 {[%emt 0:00:34]} 88. Qxg5+ {[%emt 0:00:06]} Kxg5 {[%emt 0:00:07]} 1/2-1/2

[Event "69th RUS-ch Women Superfinal 2019"]
[Site "Izhevsk"]
[Date "2019.08.19"]
[Round "8.3"]
[White "Girya, Olga"]
[Black "Tomilova, Elena"]
[Result "1-0"]
[ECO "E47"]
[WhiteElo "2457"]
[BlackElo "2281"]
[Annotator "ChessBase"]
[PlyCount "127"]
[EventDate "2019.08.10"]
[EventType "tourn"]
[EventCountry "RUS"]
[SourceTitle "playchess.com"]
[Source "ChessBase"]
[SourceQuality "1"]
[TimeControl "40/5400+30:1800+30"]

1. d4 {[%emt 0:00:00]} Nf6 {[%emt 0:00:00]} 2. c4 {[%emt 0:00:00]} e6 {[%emt 0:00:00]} 3. Nc3 {[%emt 0:00:20]} Bb4 {[%emt 0:00:00]} 4. e3 {[%emt 0:00:51]} O-O {[%emt 0:00:17]} 5. Bd3 {[%emt 0:00:49]} c5 {[%emt 0:01:25]} 6. Nge2 {[%emt 0:01:37]} d5 {[%emt 0:01:31]} 7. cxd5 {[%emt 0:01:26]} cxd4 {[%emt 0:04:06]} 8. exd4 {[%emt 0:00:08]} Nxd5 {[%emt 0:02:26]} 9. O-O {[%emt 0:00:16]} Nc6 {[%emt 0:04:10]} 10. Nxd5 {[%emt 0:01:49]} exd5 {[%emt 0:05:14]} 11. Nf4 {[%emt 0:00:29]} Ne7 {[%emt 0:22:33]} 12. Qb3 {[%emt 0:26:00]} a5 {[%emt 0:05:27]} 13. Be3 {[%emt 0:08:18]} b6 {[%emt 0:06:55]} 14. Rac1 {[%emt 0:02:00]} Bd6 {[%emt 0:08:19]} 15. a3 {[%emt 0:01:31]} Ba6 {[%emt 0:02:05]} 16. Bxa6 {[%emt 0:09:16]} Rxa6 {[%emt 0:00:05]} 17. Qb5 {[%emt 0:08:38]} Ra7 {[%emt 0:00:22]} 18. g3 {[%emt 0:05:51]} Bb8 {[%emt 0:06:28]} 19. Rfd1 {[%emt 0:02:29]} a4 {[%emt 0:01:48]} 20. Ne2 {[%emt 0:02:00]} Ra5 {[%emt 0:07:54]} 21. Qd3 {[%emt 0:00:09]} Qd7 {[%emt 0:01:11]} 22. Bd2 {[%emt 0:00:57]} Ra8 {[%emt 0:01:19]} 23. Bb4 {[%emt 0:00:42]} Bd6 {[%emt 0:00:22]} 24. Bxd6 {[%emt 0:02:47]} Qxd6 {[%emt 0:00:02]} 25. Nc3 {[%emt 0:00:36]} h5 {[%emt 0:03:44]} 26. Re1 {[%emt 0:03:41]} h4 {[%emt 0:03:12]} 27. Re5 {[%emt 0:04:05]} Ng6 {[%emt 0:02:02]} 28. Rxd5 {[%emt 0:01:19]} Qe7 {[%emt 0:01:51]} 29. Qe4 {[%emt 0:02:58]} Qxe4 {[%emt 0:02:26]} 30. Nxe4 {[%emt 0:00:01]} Rfd8 {[%emt 0:00:17]} 31. Rxd8+ {[%emt 0:02:21]} Rxd8 {[%emt 0:00:01]} 32. Rc4 {[%emt 0:04:49]} b5 {[%emt 0:01:09]} 33. Rb4 {[%emt 0:00:02]} Ne7 {[%emt 0:04:00]} 34. Kg2 {[%emt 0:03:52]} Nc6 {[%emt 0:01:18]} 35. Rxb5 {[%emt 0:00:02]} Rxd4 {[%emt 0:00:07]} 36. Nc3 {[%emt 0:00:40]} hxg3 {[%emt 0:01:16]} 37. hxg3 {[%emt 0:01:12]} f6 {[%emt 0:00:12]} 38. Kf1 {[%emt 0:02:34]} g5 {[%emt 0:01:48]} 39. Rb6 {[%emt 0:00:34]} Ne5 {[%emt 0:00:49]} 40. Rxf6 {[%emt 0:00:00]} Nd3 {[%emt 0:00:00]} 41. Rg6+ {[%emt 0:05:46]} Kf7 {[%emt 0:01:36]} 42. Rxg5 {[%emt 0:00:08]} Nxb2 {[%emt 0:00:18]} 43. Rb5 {[%emt 0:04:03]} Rc4 {[%emt 0:06:24]} 44. Rxb2 {[%emt 0:05:37]} Rxc3 {[%emt 0:00:25]} 45. Ra2 {[%emt 0:03:36]} Kf6 {[%emt 0:00:42]} 46. Kg2 {[%emt 0:00:16]} Kg5 {[%emt 0:01:16]} 47. Kh3 {[%emt 0:00:24]} Rf3 {[%emt 0:00:27]} 48. Rc2 {[%emt 0:03:47]} Rxa3 {[%emt 0:00:47]} 49. Rc5+ {[%emt 0:00:27]} Kf6 {[%emt 0:00:20]} 50. Kg4 {[%emt 0:00:33]} Ra1 {[%emt 0:00:39]} 51. Ra5 {[%emt 0:00:34]} a3 {[%emt 0:00:14]} 52. Ra6+ {[%emt 0:00:51]} Kf7 {[%emt 0:15:43]} 53. Kf5 {[%emt 0:00:24]} Kf8 {[%emt 0:04:00]} 54. g4 {[%emt 0:01:25]} Ke7 {[%emt 0:02:29]} 55. g5 {[%emt 0:00:57]} Rf1 {[%emt 0:00:34]} 56. f4 {[%emt 0:00:09]} Rf3 {[%emt 0:00:18]} 57. Ra7+ {[%emt 0:00:45]} Kf8 {[%emt 0:00:10]} 58. Ke5 {[%emt 0:00:39]} Rb3 {[%emt 0:00:52]} 59. Kf6 {[%emt 0:00:52]} Rb6+ {[%emt 0:00:22]} 60. Kf5 {[%emt 0:00:05]} Rb3 {[%emt 0:00:13]} 61. Kg6 {[%emt 0:00:26]} Rb6+ {[%emt 0:00:25]} 62. Kh5 {[%emt 0:00:17]} Rb3 {[%emt 0:00:39]} 63. f5 {[%emt 0:00:05]} Rb5 {[%emt 0:01:19]} 64. Kg6 {[%emt 0:00:09]} 1-0